Workbook

Sheet ORÇAMENTO
A1: <---- NUMERAR SERVIÇOS PARA CPU | C1: Ministério do Desenvolvimento Regional
C2: Companhia de Desenvolvimento dos Vales do São Francisco e do Parnaíba
C3: 1ª Superintendência Regional
B5: OBRA: | C5: PAVIMENTAÇÃO ASFÁLTICA EM CBUQ - RECAPEAMENTO DE VIAS URBANAS (SÃO GONÇALO DO DO ABAETÉ / MG)
B6: DATA: | C6: SETEMBRO / 2023 | G6: BDI Serviços: | I6: ='BDI SERV'!D31/100 -> 0.2467
B7: PRAZO DE EXECUÇÃO: 180 DIAS | G7: BDI Fornecimentos: | I7: ='BDI FORN'!D31/100 -> 0.15
B8: ITEM | C8: DISCRIMINAÇÃO | D8: REFER. | E8: UNID. | F8: QUANT. | G8: P. UNITÁRIO | H8: P.UNIT.C/ BDI | I8: P. TOTAL
A9: A | B9: 1 | C9: SERVIÇOS PRELIMINARES | I9: =SUM(I10:I13) -> 210191.56
A10: 1 | B10: 1.1 | C10: MOBILIZAÇÃO E DESMOBILIZAÇÃO | D10: CPU.1 | E10: GL | F10: 1 | G10: =VLOOKUP(A10,CPU!$A$1:$N$4516,9) -> 12050.66 | H10: =VLOOKUP(A10,CPU!$A$1:$N$4516,10) -> 15023.56 | I10: =ROUND(F10*H10,2) -> 15023.56
A11: 2 | B11: 1.2 | C11: ADMINISTRAÇÃO LOCAL | D11: CPU.2 | E11: GL | F11: 1 | G11: =VLOOKUP(A11,CPU!$A$1:$N$4516,9) -> 141487.02 | H11: =VLOOKUP(A11,CPU!$A$1:$N$4516,10) -> 176391.87 | I11: =ROUND(F11*H11,2) -> 176391.87
A12: 3 | B12: 1.3 | C12: CANTEIRO DE OBRAS | D12: CPU.3 | E12: GL | F12: 1 | G12: =VLOOKUP(A12,CPU!$A$1:$N$4516,9) -> 14041.5 | H12: =VLOOKUP(A12,CPU!$A$1:$N$4516,10) -> 17505.54 | I12: =ROUND(F12*H12,2) -> 17505.54
A13: 4 | B13: 1.4 | C13: PLACA DE OBRA EM CHAPA DE AÇO GALVANIZADO | D13: 103689 | E13: M2 | F13: 3 | G13: =VLOOKUP(A13,CPU!$A$1:$N$4516,9) -> 339.72 | H13: =VLOOKUP(A13,CPU!$A$1:$N$4516,10) -> 423.53 | I13: =ROUND(F13*H13,2) -> 1270.59
A14: B | B14: 2 | C14: PAVIMENTAÇÃO | I14: =SUM(I15:I17) -> 436992
A15: 10 | B15: 2.1 | C15: RECOMPOSIÇÃO DE BASE E OU SUB-BASE PARA REMENDO PROFUNDO DE BICA CORRIDA - INCLUSO RETIRADA E COLOCAÇÃO DO MATERIAL | D15: 101835a | E15: M3 | F15: 100 | G15: =VLOOKUP(A15,CPU!$A$1:$N$4516,9) -> 214.74 | H15: =VLOOKUP(A15,CPU!$A$1:$N$4516,10) -> 267.72 | I15: =ROUND(F15*H15,2) -> 26772
A16: 11 | B16: 2.2 | C16: PINTURA DE LIGAÇÃO COM EMULSÃO ASFÁLTICA RR-1C | D16: 96402 | E16: M2 | F16: 72000 | G16: =VLOOKUP(A16,CPU!$A$1:$N$4516,9) -> 0.93 | H16: =VLOOKUP(A16,CPU!$A$1:$N$4516,10) -> 1.16 | I16: 83520
A17: 12 | B17: 2.3 | C17: EXECUÇÃO DE PAVIMENTO COM APLICAÇÃO DE CONCRETO ASFÁLTICO USINADO A QUENTE (CBUQ), CAMADA DE ROLAMENTO - EXCLUSIVE TRANSPORTE | D17: 95995 | E17: M3 | F17: 2160 | G17: =VLOOKUP(A17,CPU!$A$1:$N$4516,9) -> 121.32 | H17: =VLOOKUP(A17,CPU!$A$1:$N$4516,10) -> 151.25 | I17: 326700
A18: C | B18: 3 | C18: TRANSPORTE DE MATERIAIS | I18: =SUM(I19:I19) -> 8910
A19: 13 | B19: 3.1 | C19: TRANSPORTE COM CAMINHÃO BASCULANTE, EM VIA URBANA PAVIMENTADA | D19: 95427 | E19: M3XKM | F19: 11000 | G19: =VLOOKUP(A19,CPU!$A$1:$N$4516,9) -> 0.65 | H19: =VLOOKUP(A19,CPU!$A$1:$N$4516,10) -> 0.81 | I19: =ROUND(F19*H19,2) -> 8910
A20: D | B20: 4 | C20: TRANSPORTE DE MATERIAL ASFÁLTICO (BDI DIFERENCIADO) | I20: =SUM(I21:I22) -> 274650
A21: 15 | B21: 4.1 | C21: TRANSPORTE DE MASSA ASFÁLTICA COM CAMINHÃO BASCULANTE, EM VIA URBANA PAVIMENTADA (BDI DIFERENCIADO) | D21: 95430 | E21: TXKM | F21: 570000 | G21: =VLOOKUP(A21,CPU!$A$1:$N$4516,9) -> 0.41 | H21: =VLOOKUP(A21,CPU!$A$1:$N$4516,10) -> 0.47 | I21: =ROUND(F21*H21,2) -> 267900
A22: 16 | B22: 4.2 | C22: TRANSPORTE COM CAMINHÃO TANQUE DE TRANSPORTE DE MATERIAL ASFÁLTICO DE 30000 L, EM VIA URBANA PAVIMENTADA (BDI DIFERENCIADO) | D22: 102331 | E22: TXKM | F22: 12500 | G22: =VLOOKUP(A22,CPU!$A$1:$N$4516,9) -> 0.47 | H22: =VLOOKUP(A22,CPU!$A$1:$N$4516,10) -> 0.54 | I22: =ROUND(F22*H22,2) -> 6750
A23: E | B23: 5 | C23: DRENAGEM E OBRAS COMPLEMENTARES | I23: =SUM(I24:I25) -> 181942.4
A24: 19 | B24: 5.1 | C24: PINTURA DE SÍMBOLOS E TEXTOS COM TINTA ACRÍLICA, DEMARCAÇÃO COM FITA ADESIVA E APLICAÇÃO COM ROLO (PARE, ETC.) | D24: 102513 | E24: M2 | F24: 160 | G24: =VLOOKUP(A24,CPU!$A$1:$N$4516,9) -> 44.83 | H24: =VLOOKUP(A24,CPU!$A$1:$N$4516,10) -> 55.89 | I24: =ROUND(F24*H24,2) -> 8942.4
A25: 21 | B25: 5.2 | C25: PINTURA DE EIXO VIÁRIO SOBRE ASFALTO COM TINTA RETRORREFLETIVA A BASE DE RESINA ACRÍLICA COM MICROESFERAS DE VIDRO, APLICAÇÃO MECÂNICA COM DEMARCADORA AUTOPROPELIDA | D25: 102512 | E25: M | F25: 25000 | G25: =VLOOKUP(A25,CPU!$A$1:$N$4516,9) -> 5.55 | H25: =VLOOKUP(A25,CPU!$A$1:$N$4516,10) -> 6.92 | I25: 173000
A26: F | B26: 6 | C26: FORNECIMENTOS - MATERIAL ASFÁLTICO (BDI DIFERENCIADO) | I26: =SUM(I27:I28) -> 3886194.67
A27: 26 | B27: 6.1 | C27: AQUISIÇÃO DE EMULSAO ASFALTICA CATIONICA RR-1C - EXCLUSIVE TRANSPORTE | D27: CPU.6 | E27: T | F27: 33 | G27: =VLOOKUP(A27,CPU!$A$1:$N$4516,9) -> 2736.39 | H27: =VLOOKUP(A27,CPU!$A$1:$N$4516,10) -> 3146.85 | I27: =ROUND(F27*H27,2) -> 103846.05
A28: 27 | B28: 6.2 | C28: AQUISIÇÃO DE CONCRETO BETUMINOSO USINADO A QUENTE (CBUQ) PARA PAVIMENTACAO ASFALTICA, PADRAO DNIT, FAIXA C, COM CAP 50/70 - EXCLUSIVE TRANSPORTE | D28: CPU.7 | E28: T | F28: 5499.998 | G28: =VLOOKUP(A28,CPU!$A$1:$N$4516,9) -> 598 | H28: =VLOOKUP(A28,CPU!$A$1:$N$4516,10) -> 687.7 | I28: =ROUND(F28*H28,2) -> 3782348.62
B29: TOTAL GERAL DA OBRA COM BDI | I29: =SUM(I9,I14,I18,I23,I26,I20) -> 4998880.63

Sheet CPU
A1: 1 | B1: CODEVASF | E1: COMPOSIÇÃO DE PREÇO UNITÁRIO | I1: =H11 -> 12050.66 | J1: =H13 -> 15023.56 | K1: BDI CALCULADO: | M1: =ORÇAMENTO!I6 -> 0.2467
B2: OBRA: | C2: =ORÇAMENTO!C5 -> PAVIMENTAÇÃO ASFÁLTICA EM CBUQ - RECAPEAMENTO DE VIAS URBANAS (SÃO GONÇALO DO DO ABAETÉ / MG) | G2: DATA: | H2: =ORÇAMENTO!C6 -> SETEMBRO / 2023 | K2: BDI DIFERENCIADO: | M2: ='BDI FORN'!D31/100 -> 0.15
B3: SERVIÇO: | C3: =VLOOKUP(A1,ORÇAMENTO!A10:I23,3) -> MOBILIZAÇÃO E DESMOBILIZAÇÃO | E3: Referência: | F3: =VLOOKUP(A1,ORÇAMENTO!$A$10:$I$23,4) -> CPU.1 | G3: UNIDADE: | H3: =VLOOKUP(A1,ORÇAMENTO!A10:I23,5) -> GL
B5: TIPO ITEM | C5: CODIGO ITEM | D5: DESCRIÇÃO ITEM | E5: UNIDADE ITEM | F5: COEFICIENTE | G5: PRECO UNITARIO | H5: CUSTO TOTAL
B6: COMPOSICAO | C6: 89876 | D6: CAMINHÃO BASCULANTE 14 M3, COM CAVALO MECÂNICO DE CAPACIDADE MÁXIMA DE TRAÇÃO COMBINADO DE 36000 KG, POTÊNCIA 286 CV, INCLUSIVE SEMIREBOQUE COM CAÇAMBA METÁLICA | E6: CHP DIURNO. | F6: 8 | G6: 286.2 | H6: =ROUNDDOWN(F6*G6,2) -> 2289.6
B7: COMPOSICAO | C7: 89877 | D7: CAMINHÃO BASCULANTE 14 M3, COM CAVALO MECÂNICO DE CAPACIDADE MÁXIMA DE TRAÇÃO COMBINADO DE 36000 KG, POTÊNCIA 286 CV, INCLUSIVE SEMIREBOQUE COM CAÇAMBA METÁLICA | E7: CHI DIURNO. | F7: 8 | G7: 82.81 | H7: =ROUNDDOWN(F7*G7,2) -> 662.48
B8: COMPOSICAO | C8: 5914640 | D8: TRANSPORTE COM CAVALO MECÂNICO COM SEMIRREBOQUE COM CAPACIDADE DE 30 T - RODOVIA PAVIMENTADA | E8: T.KM | F8: 4837 | G8: 0.57 | H8: =ROUNDDOWN(F8*G8,2) -> 2757.09
B9: COMPOSIÇÃO | C9: 88316 | D9: SERVENTE COM ENCARGOS COMPLEMENTARES | E9: H | F9: 16 | G9: 19.76 | H9: =ROUNDDOWN(F9*G9,2) -> 316.16
B10: PRODUÇÃO DA EQUIPE | E10: 0.5 | F10: CUSTO | H10: =SUM(H6:H9) -> 6025.33
B11: TOTAL | H11: =H10/E10 -> 12050.66 | I11: OK
B12: BDI % | H12: =1+$M$1 -> 1.2467
B13: TOTAL DO SERVIÇO - R$ | H13: =ROUND(H11*H12,2) -> 15023.56
A15: =A1+1 -> 2 | B15: CODEVASF | E15: COMPOSIÇÃO DE PREÇO UNITÁRIO | I15: =H29 -> 141487.02 | J15: =H31 -> 176391.87
B16: OBRA: | C16: =$C$2 -> PAVIMENTAÇÃO ASFÁLTICA EM CBUQ - RECAPEAMENTO DE VIAS URBANAS (SÃO GONÇALO DO DO ABAETÉ / MG) | G16: DATA: | H16: =$H$2 -> SETEMBRO / 2023
B17: SERVIÇO: | C17: =VLOOKUP(A15,ORÇAMENTO!$A$10:$I$23,3) -> ADMINISTRAÇÃO LOCAL | E17: SINAPI | F17: =VLOOKUP(A15,ORÇAMENTO!$A$10:$I$23,4) -> CPU.2 | G17: UNIDADE: | H17: =VLOOKUP(A15,ORÇAMENTO!$A$10:$I$23,5) -> GL
B19: TIPO ITEM | C19: CODIGO ITEM | D19: DESCRIÇÃO ITEM | E19: UNIDADE ITEM | F19: COEFICIENTE | G19: PRECO UNITARIO | H19: CUSTO TOTAL
B20: INSUMO | C20: 14250 | D20: ENERGIA ELÉTRICA | E20: kwh | F20: 60 | G20: 0.95 | H20: =ROUNDDOWN(F20*G20,2) -> 57
B21: INSUMO | C21: 44480 | D21: TARIFA "A" - ÁGUA/ESGOTO | E21: m³ | F21: 6 | G21: 17.97 | H21: 107.82
B22: COTAÇÃO | C22: MERC. | D22: TELEFONE (PLANO CONTROLE) | E22: UNID | F22: 2 | G22: 59.9 | H22: 119.8
B23: INSUMO | C23: ED-50155 SEINFRA | D23: BANHEIRO QUÍMICO 110 X 120 X 230 CM COM MANUTENÇÃO (CONSIDERANDO OBRAS SIMULTÂNEAS) | E23: MÊS | F23: 1 | G23: 515 | H23: 515
B24: COMPOSICAO | C24: 90777 | D24: Engenheiro Civil Júnior com encargos complementares | E24: H | F24: 55 | G24: 114.12 | H24: 6276.6
B25: COMPOSICAO | C25: 90776 | D25: Encarregado Geral com encargos complementares | E25: H | F25: 220 | G25: 57.73 | H25: 12700.6
B26: COMPOSICAO | C26: 88321 | D26: Tecnico de Laboratório com encargos complementares | E26: H | F26: 55 | G26: 45.45 | H26: 2499.75
B27: COMPOSICAO | C27: 90772 | D27: Auxiliar de escritório com encargos complementares | E27: H | F27: 55 | G27: 23.72 | H27: 1304.6
B28: PRODUÇÃO DA EQUIPE | E28: =1/6 -> 0.1666666667 | F28: CUSTO | H28: =SUM(H20:H27) -> 23581.17
B29: TOTAL | H29: =ROUND(H28/E28,2) -> 141487.02 | I29: OK
B30: BDI % | H30: =1+$M$1 -> 1.2467
B31: TOTAL DO SERVIÇO - R$ | H31: =ROUND(H29*H30,2) -> 176391.87
A33: =A15+1 -> 3 | B33: CODEVASF | E33: COMPOSIÇÃO DE PREÇO UNITÁRIO | I33: =H43 -> 14041.5 | J33: =H45 -> 17505.54
B34: OBRA: | C34: =$C$2 -> PAVIMENTAÇÃO ASFÁLTICA EM CBUQ - RECAPEAMENTO DE VIAS URBANAS (SÃO GONÇALO DO DO ABAETÉ / MG) | G34: DATA: | H34: =$H$2 -> SETEMBRO / 2023
B35: SERVIÇO: | C35: =VLOOKUP(A33,ORÇAMENTO!$A$10:$I$23,3) -> CANTEIRO DE OBRAS | E35: SINAPI | F35: =VLOOKUP(A33,ORÇAMENTO!$A$10:$I$23,4) -> CPU.3 | G35: UNIDADE: | H35: =VLOOKUP(A33,ORÇAMENTO!$A$10:$I$23,5) -> GL
B37: TIPO ITEM | C37: CODIGO ITEM | D37: DESCRIÇÃO ITEM | E37: UNIDADE ITEM | F37: COEFICIENTE | G37: PRECO UNITARIO | H37: CUSTO TOTAL
B38: INSUMO | C38: 10775 | D38: LOCACAO DE CONTAINER 2,30 X 6,00 M, ALT. 2,50 M, COM 1 SANITARIO, PARA ESCRITORIO, COMPLETO, SEM DIVISORIAS INTERNAS | E38: MÊS | F38: 6 | G38: 995 | H38: =ROUNDDOWN(F38*G38,2) -> 5970
B39: INSUMO | C39: 10779 | D39: LOCACAO DE CONTAINER 2,30 X 4,30 M, ALT. 2,50 M, P/ SANITARIO, C/ 5 BACIAS, 1 LAVATORIO E 4 MICTORIOS | E39: MÊS | F39: 6 | G39: 1243.75 | H39: =ROUNDDOWN(F39*G39,2) -> 7462.5
B40: INSUMO | C40: 37525 | D40: TELA PLASTICA TECIDA LISTRADA BRANCA E LARANJA, TIPO GUARDA CORPO, EM POLIETILENO MONOFILADO, ROLO 1,20 X 50 M (L X C) | E40: M | F40: 100 | G40: 3.69 | H40: =ROUNDDOWN(F40*G40,2) -> 369
B41: COMPOSICAO | C41: - | D41: PLACA DE SINALIZAÇÃO - "PERIGO - OBRAS A FRENTE" - FORNECIMENTO E MOVIMENTAÇÃO | E41: UNID. | F41: 12 | G41: 20 | H41: =ROUNDDOWN(F41*G41,2) -> 240
B42: PRODUÇÃO DA EQUIPE | E42: 1 | F42: CUSTO | H42: =SUM(H38:H41) -> 14041.5
B43: TOTAL | H43: =H42/E42 -> 14041.5 | I43: OK
B44: BDI % | H44: =1+$M$1 -> 1.2467
B45: TOTAL DO SERVIÇO - R$ | H45: =ROUND(H43*H44,2) -> 17505.54
A47: =A33+1 -> 4 | B47: CODEVASF | E47: COMPOSIÇÃO DE PREÇO UNITÁRIO | I47: =H61 -> 339.72 | J47: =H63 -> 423.53
B48: OBRA: | C48: =$C$2 -> PAVIMENTAÇÃO ASFÁLTICA EM CBUQ - RECAPEAMENTO DE VIAS URBANAS (SÃO GONÇALO DO DO ABAETÉ / MG) | G48: DATA: | H48: =$H$2 -> SETEMBRO / 2023
B49: SERVIÇO: | C49: =VLOOKUP(A47,ORÇAMENTO!$A$10:$I$23,3) -> PLACA DE OBRA EM CHAPA DE AÇO GALVANIZADO | E49: SINAPI | F49: =VLOOKUP(A47,ORÇAMENTO!$A$10:$I$23,4) -> 103689 | G49: UNIDADE: | H49: =VLOOKUP(A47,ORÇAMENTO!$A$10:$I$23,5) -> M2
B51: TIPO ITEM | C51: CODIGO ITEM | D51: DESCRIÇÃO ITEM | E51: UNIDADE ITEM | F51: COEFICIENTE | G51: PRECO UNITARIO | H51: CUSTO TOTAL
B52: INSUMO | C52: 4509 | D52: SARRAFO *2,5 X 10* CM EM PINUS, MISTA OU EQUIVALENTE DA REGIAO - BRUTA | E52: M | F52: 3,2083000 | G52: 4,41 | H52: =ROUNDDOWN(F52*G52,2) -> 14.14
B53: INSUMO | C53: 4813 | D53: PLACA DE OBRA (PARA CONSTRUCAO CIVIL) EM CHAPA GALVANIZADA *N. 22*, ADESIVADA, DE *2,4 X 1,2* M (SEM POSTES PARA FIXACAO) | E53: M2 | F53: 1,0000000 | G53: 250,00 | H53: 250
B54: INSUMO | C54: 5065 | D54: PREGO DE ACO POLIDO COM CABECA 10 X 10 (7/8 X 17) | E54: KG | F54: 0,0113000 | G54: 36,57 | H54: 0.41
B55: INSUMO | C55: 5069 | D55: PREGO DE ACO POLIDO COM CABECA 17 X 27 (2 1/2 X 11) | E55: KG | F55: 0,0132000 | G55: 19,59 | H55: 0.25
B56: COMPOSICAO | C56: 88262 | D56: CARPINTEIRO DE FORMAS COM ENCARGOS COMPLEMENTARES | E56: H | F56: 0,3729000 | G56: 27,05 | H56: 10.08
B57: COMPOSICAO | C57: 88316 | D57: SERVENTE COM ENCARGOS COMPLEMENTARES | E57: H | F57: 1,1186000 | G57: 19,76 | H57: 22.1
B58: INSUMO | C58: 4115 | D58: MADEIRA ROLICA TRATADA, D = 12 A 15 CM, H = 3,00 M, EM EUCALIPTO OU EQUIVALENTE | E58: M | F58: 2 | G58: 21.37 | H58: 42.74
H59: 0
B60: PRODUÇÃO DA EQUIPE | E60: 1 | F60: CUSTO | H60: =SUM(H52:H59) -> 339.72
B61: TOTAL | H61: =H60/E60 -> 339.72 | I61: OK
B62: BDI % | H62: =1+$M$1 -> 1.2467
B63: TOTAL DO SERVIÇO - R$ | H63: =ROUND(H61*H62,2) -> 423.53
A65: 10 | B65: CODEVASF | E65: COMPOSIÇÃO DE PREÇO UNITÁRIO | I65: =H77 -> 214.74 | J65: =H79 -> 267.72
B66: OBRA: | C66: =$C$2 -> PAVIMENTAÇÃO ASFÁLTICA EM CBUQ - RECAPEAMENTO DE VIAS URBANAS (SÃO GONÇALO DO DO ABAETÉ / MG) | G66: DATA: | H66: =$H$2 -> SETEMBRO / 2023
B67: SERVIÇO: | C67: =VLOOKUP(A65,ORÇAMENTO!$A$10:$I$23,3) -> RECOMPOSIÇÃO DE BASE E OU SUB-BASE PARA REMENDO PROFUNDO DE BICA CORRIDA - INCLUSO RETIRADA E COLOCAÇÃO DO MATERIAL | E67: SINAPI | F67: =VLOOKUP(A65,ORÇAMENTO!$A$10:$I$23,4) -> 101835a | G67: UNIDADE: | H67: =VLOOKUP(A65,ORÇAMENTO!$A$10:$I$23,5) -> M3
B69: TIPO ITEM | C69: CODIGO ITEM | D69: DESCRIÇÃO ITEM | E69: UNIDADE ITEM | F69: COEFICIENTE | G69: PRECO UNITARIO | H69: CUSTO TOTAL
B70: COMPOSICAO | C70: 88316 | D70: SERVENTE COM ENCARGOS COMPLEMENTARES | E70: H | F70: 4,2001000 | G70: 19,76 | H70: =ROUNDDOWN(F70*G70,2) -> 82.99
B71: COMPOSICAO | C71: 91533 | D71: COMPACTADOR DE SOLOS DE PERCUSSÃO (SOQUETE) COM MOTOR A GASOLINA 4 TEMPOS, POTÊNCIA 4 CV | E71: CHP | F71: 0,2050000 | G71: 40,60 | H71: 8.32
B72: COMPOSICAO | C72: 91534 | D72: COMPACTADOR DE SOLOS DE PERCUSSÃO (SOQUETE) COM MOTOR A GASOLINA 4 TEMPOS, POTÊNCIA 4 CV | E72: CHI | F72: 0,8450000 | G72: 34,40 | H72: 29.06
B73: COMPOSICAO | C73: 4748 | D73: PEDRA BRITADA OU BICA CORRIDA, NAO CLASSIFICADA (POSTO PEDREIRA/FORNECEDOR, SEM FRETE) | E73: M3 | F73: 1,0000000 | G73: 70 | H73: 70
B74: INSUMO | C74: ANP | D74: EMULSÃO ASFÁLTICA PARA IMPRIMAÇÃO (EAI) | E74: T | F74: =1.3/0.15/1000 -> 0.008666666667 | G74: =2.30638*1.2195122*1000 -> 2812.658548 | H74: 24.37
H75: 0
B76: PRODUÇÃO DA EQUIPE | E76: 1 | F76: CUSTO | H76: =SUM(H70:H75) -> 214.74
B77: TOTAL | H77: =H76/E76 -> 214.74 | I77: OK
B78: BDI % | H78: =1+$M$1 -> 1.2467
B79: TOTAL DO SERVIÇO - R$ | H79: =ROUND(H77*H78,2) -> 267.72
A81: 11 | B81: CODEVASF | E81: COMPOSIÇÃO DE PREÇO UNITÁRIO | I81: =H96 -> 0.93 | J81: =H98 -> 1.16
B82: OBRA: | C82: =$C$2 -> PAVIMENTAÇÃO ASFÁLTICA EM CBUQ - RECAPEAMENTO DE VIAS URBANAS (SÃO GONÇALO DO DO ABAETÉ / MG) | G82: DATA: | H82: =$H$2 -> SETEMBRO / 2023
B83: SERVIÇO: | C83: =VLOOKUP(A81,ORÇAMENTO!$A$10:$I$23,3) -> PINTURA DE LIGAÇÃO COM EMULSÃO ASFÁLTICA RR-1C | E83: SINAPI | F83: =VLOOKUP(A81,ORÇAMENTO!$A$10:$I$23,4) -> 96402 | G83: UNIDADE: | H83: M2
B85: TIPO ITEM | C85: CODIGO ITEM | D85: DESCRIÇÃO ITEM | E85: UNIDADE ITEM | F85: COEFICIENTE | G85: PRECO UNITARIO | H85: CUSTO TOTAL
B86: COMPOSICAO | C86: 5839 | D86: VASSOURA MECÂNICA REBOCÁVEL COM ESCOVA CILÍNDRICA, LARGURA ÚTIL DE VARRIMENTO DE 2,44 M | E86: CHP | F86: 0,0020000 | G86: 9.77 | H86: =ROUNDDOWN(F86*G86,2) -> 0.01
B87: COMPOSICAO | C87: 5841 | D87: VASSOURA MECÂNICA REBOCÁVEL COM ESCOVA CILÍNDRICA, LARGURA ÚTIL DE VARRIMENTO DE 2,44 M | E87: CHI | F87: 0,0040000 | G87: 4.65 | H87: 0.01
B88: INSUMO | C88: 41903 | D88: EMULSAO ASFALTICA CATIONICA RR-2C PARA USO EM PAVIMENTACAO ASFALTICA (FORNECIMENTO COM BDI DIFERENCIADO) | E88: KG | F88: 0,4500000 | H88: 0
B89: COMPOSICAO | C89: 83362 | D89: ESPARGIDOR DE ASFALTO PRESSURIZADO, TANQUE 6 M3 COM ISOLAÇÃO TÉRMICA, AQUECIDO COM 2 MAÇARICOS, COM BARRA ESPARGIDORA 3,60 M, MONTADO SOBRE CAMINHÃO TOCO, PBT 14.300 KG, POTÊNCIA 185 CV | E89: CHP | F89: 0,0004000 | G89: 232.92 | H89: 0.09
B90: COMPOSICAO | C90: 88316 | D90: SERVENTE COM ENCARGOS COMPLEMENTARES | E90: H | F90: 0,0055000 | G90: 19.76 | H90: 0.1
B91: COMPOSICAO | C91: 89035 | D91: TRATOR DE PNEUS, POTÊNCIA 85 CV, TRAÇÃO 4X4, PESO COM LASTRO DE 4.675 KG | E91: CHP | F91: 0,0017000 | G91: 119.96 | H91: 0.2
B92: COMPOSICAO | C92: 89036 | D92: TRATOR DE PNEUS, POTÊNCIA 85 CV, TRAÇÃO 4X4, PESO COM LASTRO DE 4.675 KG | E92: CHI | F92: 0,0038000 | G92: 52.19 | H92: 0.19
B93: COMPOSICAO | C93: 91486 | D93: ESPARGIDOR DE ASFALTO PRESSURIZADO, TANQUE 6 M3 COM ISOLAÇÃO TÉRMICA, AQUECIDO COM 2 MAÇARICOS, COM BARRA ESPARGIDORA 3,60 M, MONTADO SOBRE CAMINHÃO TOCO, PBT 14.300 KG, POTÊNCIA 185 CV | E93: CHI | F93: 0,0051000 | G93: 66.18 | H93: 0.33
H94: 0
B95: PRODUÇÃO DA EQUIPE | E95: 1 | F95: CUSTO | H95: =SUM(H86:H94) -> 0.93
B96: TOTAL | H96: =H95/E95 -> 0.93 | I96: OK
B97: BDI % | H97: =1+$M$1 -> 1.2467
B98: TOTAL DO SERVIÇO - R$ | H98: =ROUND(H96*H97,2) -> 1.16
A100: 12 | B100: CODEVASF | E100: COMPOSIÇÃO DE PREÇO UNITÁRIO | I100: =H118 -> 121.32 | J100: =H120 -> 151.25
B101: OBRA: | C101: =$C$2 -> PAVIMENTAÇÃO ASFÁLTICA EM CBUQ - RECAPEAMENTO DE VIAS URBANAS (SÃO GONÇALO DO DO ABAETÉ / MG) | G101: DATA: | H101: =$H$2 -> SETEMBRO / 2023
B102: SERVIÇO: | C102: =VLOOKUP(A100,ORÇAMENTO!$A$10:$I$23,3) -> EXECUÇÃO DE PAVIMENTO COM APLICAÇÃO DE CONCRETO ASFÁLTICO USINADO A QUENTE (CBUQ), CAMADA DE ROLAMENTO - EXCLUSIVE TRANSPORTE | E102: SINAPI | F102: =VLOOKUP(A100,ORÇAMENTO!$A$10:$I$23,4) -> 95995 | G102: UNIDADE: | H102: =VLOOKUP(A100,ORÇAMENTO!$A$10:$I$23,5) -> M3
B104: TIPO ITEM | C104: CODIGO ITEM | D104: DESCRIÇÃO ITEM | E104: UNIDADE ITEM | F104: COEFICIENTE | G104: PRECO UNITARIO | H104: CUSTO TOTAL
B105: INSUMO | C105: 1518 | D105: CONCRETO BETUMINOSO USINADO A QUENTE (CBUQ) PARA PAVIMENTACAO ASFALTICA, PADRAO DNIT, FAIXA C, COM CAP 50/70 - AQUISICAO POSTO USINA (FORNECIMENTO COM BDI DIFERENCIADO) | E105: T | F105: 2,5548000 | H105: =ROUNDDOWN(F105*G105,2) -> 0
B106: COMPOSICAO | C106: 5835 | D106: VIBROACABADORA DE ASFALTO SOBRE ESTEIRAS, LARGURA DE PAVIMENTAÇÃO 1,90 M A 5,30 M, POTÊNCIA 105 HP CAPACIDADE 450 T/H | E106: CHP | F106: 0,0464000 | G106: 366,49 | H106: 17
B107: COMPOSICAO | C107: 5837 | D107: VIBROACABADORA DE ASFALTO SOBRE ESTEIRAS, LARGURA DE PAVIMENTAÇÃO 1,90 M A 5,30 M, POTÊNCIA 105 HP CAPACIDADE 450 T/H | E107: CHI | F107: 0,0949000 | G107: 147,82 | H107: 14.02
B108: COMPOSICAO | C108: 88314 | D108: RASTELEIRO COM ENCARGOS COMPLEMENTARES | E108: H | F108: 1,1301000 | G108: 26,52 | H108: 29.97
B109: COMPOSICAO | C109: 91386 | D109: CAMINHÃO BASCULANTE 10 M3, TRUCADO CABINE SIMPLES, PESO BRUTO TOTAL 23.000 KG, CARGA ÚTIL MÁXIMA 15.935 KG, DISTÂNCIA ENTRE EIXOS 4,80 M, POTÊNCIA 230 CV INCLUSIVE CAÇAMBA METÁLICA | E109: CHP | F109: 0,0464000 | G109: 228,50 | H109: 10.6
B110: COMPOSICAO | C110: 95631 | D110: ROLO COMPACTADOR VIBRATORIO TANDEM, ACO LISO, POTENCIA 125 HP, PESO SEM/COM LASTRO 10,20/11,65 T, LARGURA DE TRABALHO 1,73 M | E110: CHP | F110: 0,0805000 | G110: 210,29 | H110: 16.92
B111: COMPOSICAO | C111: 95632 | D111: ROLO COMPACTADOR VIBRATORIO TANDEM, ACO LISO, POTENCIA 125 HP, PESO SEM/COM LASTRO 10,20/11,65 T, LARGURA DE TRABALHO 1,73 M | E111: CHI | F111: 0,0607000 | G111: 83,23 | H111: 5.05
B112: COMPOSICAO | C112: 96155 | D112: TRATOR DE PNEUS COM POTÊNCIA DE 85 CV, TRAÇÃO 4X4, COM VASSOURA MECÂNICA ACOPLADA | E112: CHI | F112: 0,1071000 | G112: 56,63 | H112: 6.06
B113: COMPOSICAO | C113: 96157 | D113: TRATOR DE PNEUS COM POTÊNCIA DE 85 CV, TRAÇÃO 4X4, COM VASSOURA MECÂNICA ACOPLADA | E113: CHP | F113: 0,0341000 | G113: 128,67 | H113: 4.38
B114: COMPOSICAO | C114: 96463 | D114: ROLO COMPACTADOR DE PNEUS, ESTATICO, PRESSAO VARIAVEL, POTENCIA 110 HP, PESO SEM/COM LASTRO 10,8/27 T, LARGURA DE ROLAGEM 2,30 M | E114: CHP | F114: 0,0419000 | G114: 203,13 | H114: 8.51
B115: COMPOSICAO | C115: 96464 | D115: ROLO COMPACTADOR DE PNEUS, ESTATICO, PRESSAO VARIAVEL, POTENCIA 110 HP, PESO SEM/COM LASTRO 10,8/27 T, LARGURA DE ROLAGEM 2,30 M | E115: CHI | F115: 0,0990000 | G115: 89,07 | H115: 8.81
H116: 0
B117: PRODUÇÃO DA EQUIPE | E117: 1 | F117: CUSTO | H117: =SUM(H105:H116) -> 121.32
B118: TOTAL | H118: =H117/E117 -> 121.32 | I118: OK
B119: BDI % | H119: =1+$M$1 -> 1.2467
B120: TOTAL DO SERVIÇO - R$ | H120: =ROUND(H118*H119,2) -> 151.25
A122: 13 | B122: CODEVASF | E122: COMPOSIÇÃO DE PREÇO UNITÁRIO | I122: =H131 -> 0.65 | J122: =H133 -> 0.81
B123: OBRA: | C123: =$C$2 -> PAVIMENTAÇÃO ASFÁLTICA EM CBUQ - RECAPEAMENTO DE VIAS URBANAS (SÃO GONÇALO DO DO ABAETÉ / MG) | G123: DATA: | H123: =$H$2 -> SETEMBRO / 2023
B124: SERVIÇO: | C124: =VLOOKUP(A122,ORÇAMENTO!$A$10:$I$23,3) -> TRANSPORTE COM CAMINHÃO BASCULANTE, EM VIA URBANA PAVIMENTADA | E124: SINAPI | F124: =VLOOKUP(A122,ORÇAMENTO!$A$10:$I$23,4) -> 95427 | G124: UNIDADE: | H124: =VLOOKUP(A122,ORÇAMENTO!$A$10:$I$23,5) -> M3XKM
B126: TIPO ITEM | C126: CODIGO ITEM | D126: DESCRIÇÃO ITEM | E126: UNIDADE ITEM | F126: COEFICIENTE | G126: PRECO UNITARIO | H126: CUSTO TOTAL
B127: COMPOSICAO | C127: 89883 | D127: CAMINHÃO BASCULANTE 18 M3, COM CAVALO MECÂNICO DE CAPACIDADE MÁXIMA DE TRAÇÃO COMBINADO DE 45000 KG, POTÊNCIA 330 CV, INCLUSIVE SEMIREBOQUE COM CAÇAMBA METÁLICA | E127: CHP | F127: 0,0019000 | G127: 314,64 | H127: =ROUNDDOWN(F127*G127,2) -> 0.59
B128: COMPOSICAO | C128: 89884 | D128: CAMINHÃO BASCULANTE 18 M3, COM CAVALO MECÂNICO DE CAPACIDADE MÁXIMA DE TRAÇÃO COMBINADO DE 45000 KG, POTÊNCIA 330 CV, INCLUSIVE SEMIREBOQUE COM CAÇAMBA METÁLICA | E128: CHI | F128: 0,0008000 | G128: 86,36 | H128: =ROUNDDOWN(F128*G128,2) -> 0.06
H129: =ROUNDDOWN(F129*G129,2) -> 0
B130: PRODUÇÃO DA EQUIPE | E130: 1 | F130: CUSTO | H130: =SUM(H127:H129) -> 0.65
B131: TOTAL | H131: =H130/E130 -> 0.65 | I131: OK
B132: BDI % | H132: =1+$M$1 -> 1.2467
B133: TOTAL DO SERVIÇO - R$ | H133: =ROUND(H131*H132,2) -> 0.81
A135: 15 | B135: CODEVASF | E135: COMPOSIÇÃO DE PREÇO UNITÁRIO | I135: =H144 -> 0.41 | J135: =H146 -> 0.47
B136: OBRA: | C136: =$C$2 -> PAVIMENTAÇÃO ASFÁLTICA EM CBUQ - RECAPEAMENTO DE VIAS URBANAS (SÃO GONÇALO DO DO ABAETÉ / MG) | G136: DATA: | H136: =$H$2 -> SETEMBRO / 2023
B137: SERVIÇO: | C137: =VLOOKUP(A135,ORÇAMENTO!$A$10:$I$23,3) -> TRANSPORTE DE MASSA ASFÁLTICA COM CAMINHÃO BASCULANTE, EM VIA URBANA PAVIMENTADA (BDI DIFERENCIADO) | E137: SINAPI | F137: =VLOOKUP(A135,ORÇAMENTO!$A$10:$I$23,4) -> 95430 | G137: UNIDADE: | H137: =VLOOKUP(A135,ORÇAMENTO!$A$10:$I$23,5) -> TXKM
B139: TIPO ITEM | C139: CODIGO ITEM | D139: DESCRIÇÃO ITEM | E139: UNIDADE ITEM | F139: COEFICIENTE | G139: PRECO UNITARIO | H139: CUSTO TOTAL
B140: COMPOSICAO | C140: 89883 | D140: CAMINHÃO BASCULANTE 18 M3, COM CAVALO MECÂNICO DE CAPACIDADE MÁXIMA DE TRAÇÃO COMBINADO DE 45000 KG, POTÊNCIA 330 CV, INCLUSIVE SEMIREBOQUE COM CAÇAMBA METÁLICA | E140: CHP | F140: 0,0012000 | G140: 314,64 | H140: =ROUNDDOWN(F140*G140,2) -> 0.37
B141: COMPOSICAO | C141: 89884 | D141: CAMINHÃO BASCULANTE 18 M3, COM CAVALO MECÂNICO DE CAPACIDADE MÁXIMA DE TRAÇÃO COMBINADO DE 45000 KG, POTÊNCIA 330 CV, INCLUSIVE SEMIREBOQUE COM CAÇAMBA METÁLICA | E141: CHI | F141: 0,0005000 | G141: 86,36 | H141: =ROUNDDOWN(F141*G141,2) -> 0.04
H142: =ROUNDDOWN(F142*G142,2) -> 0
B143: PRODUÇÃO DA EQUIPE | E143: 1 | F143: CUSTO | H143: =SUM(H140:H142) -> 0.41
B144: TOTAL | H144: =H143/E143 -> 0.41 | I144: OK
B145: BDI % | H145: =1+$M$2 -> 1.15
B146: TOTAL DO SERVIÇO - R$ | H146: =ROUND(H144*H145,2) -> 0.47
A148: 16 | B148: CODEVASF | E148: COMPOSIÇÃO DE PREÇO UNITÁRIO | I148: =H156 -> 0.47 | J148: =H158 -> 0.54
B149: OBRA: | C149: =$C$2 -> PAVIMENTAÇÃO ASFÁLTICA EM CBUQ - RECAPEAMENTO DE VIAS URBANAS (SÃO GONÇALO DO DO ABAETÉ / MG) | G149: DATA: | H149: =$H$2 -> SETEMBRO / 2023
B150: SERVIÇO: | C150: =VLOOKUP(A148,ORÇAMENTO!$A$10:$I$23,3) -> TRANSPORTE COM CAMINHÃO TANQUE DE TRANSPORTE DE MATERIAL ASFÁLTICO DE 30000 L, EM VIA URBANA PAVIMENTADA (BDI DIFERENCIADO) | E150: SINAPI | F150: =VLOOKUP(A148,ORÇAMENTO!$A$10:$I$23,4) -> 102331 | G150: UNIDADE: | H150: =VLOOKUP(A148,ORÇAMENTO!$A$10:$I$23,5) -> TXKM
B152: TIPO ITEM | C152: CODIGO ITEM | D152: DESCRIÇÃO ITEM | E152: UNIDADE ITEM | F152: COEFICIENTE | G152: PRECO UNITARIO | H152: CUSTO TOTAL
B153: COMPOSICAO | C153: 91645 | D153: CAMINHÃO DE TRANSPORTE DE MATERIAL ASFÁLTICO 30.000 L, COM CAVALO MECÂNICO DE CAPACIDADE MÁXIMA DE TRAÇÃO COMBINADO DE 66.000 KG, POTÊNCIA 360 CV, INCLUSIVE TANQUE DE ASFALTO COM SERPENTINA | E153: CHP | F153: 0,0011000 | G153: 394,83 | H153: =ROUNDDOWN(F153*G153,2) -> 0.43
B154: COMPOSICAO | C154: 91646 | D154: CAMINHÃO DE TRANSPORTE DE MATERIAL ASFÁLTICO 30.000 L, COM CAVALO MECÂNICO DE CAPACIDADE MÁXIMA DE TRAÇÃO COMBINADO DE 66.000 KG, POTÊNCIA 360 CV, INCLUSIVE TANQUE DE ASFALTO COM SERPENTINA | E154: CHI | F154: 0,0005000 | G154: 90,79 | H154: =ROUNDDOWN(F154*G154,2) -> 0.04
B155: PRODUÇÃO DA EQUIPE | E155: 1 | F155: CUSTO | H155: =SUM(H153:H154) -> 0.47
B156: TOTAL | H156: =H155/E155 -> 0.47 | I156: OK
B157: BDI % | H157: =1+$M$2 -> 1.15
B158: TOTAL DO SERVIÇO - R$ | H158: =ROUND(H156*H157,2) -> 0.54
A160: 19 | B160: CODEVASF | E160: COMPOSIÇÃO DE PREÇO UNITÁRIO | I160: =H171 -> 44.83 | J160: =H173 -> 55.89
B161: OBRA: | C161: =$C$2 -> PAVIMENTAÇÃO ASFÁLTICA EM CBUQ - RECAPEAMENTO DE VIAS URBANAS (SÃO GONÇALO DO DO ABAETÉ / MG) | G161: DATA: | H161: =$H$2 -> SETEMBRO / 2023
B162: SERVIÇO: | C162: =VLOOKUP(A160,ORÇAMENTO!$A$10:$I$27,3) -> PINTURA DE SÍMBOLOS E TEXTOS COM TINTA ACRÍLICA, DEMARCAÇÃO COM FITA ADESIVA E APLICAÇÃO COM ROLO (PARE, ETC.) | E162: SINAPI | F162: =VLOOKUP(A160,ORÇAMENTO!$A$10:$I$31,4) -> 102513 | G162: UNIDADE: | H162: UN.
B164: TIPO ITEM | C164: CODIGO ITEM | D164: DESCRIÇÃO ITEM | E164: UNIDADE ITEM | F164: COEFICIENTE | G164: PRECO UNITARIO | H164: CUSTO TOTAL
B165: INSUMO | C165: 7348 | D165: TINTA ACRILICA PREMIUM PARA PISO | E165: L | F165: 0,4270000 | G165: 17,07 | H165: =ROUNDDOWN(F165*G165,2) -> 7.28
B166: INSUMO | C166: 12815 | D166: FITA CREPE ROLO DE 25 MM X 50 M | E166: UN | F166: 0,2300000 | G166: 9,31 | H166: 2.14
B167: COMPOSICAO | C167: 88310 | D167: PINTOR COM ENCARGOS COMPLEMENTARES | E167: H | F167: 0,9600000 | G167: 28,66 | H167: 27.51
B168: COMPOSICAO | C168: 88316 | D168: SERVENTE COM ENCARGOS COMPLEMENTARES | E168: H | F168: 0,4000000 | G168: 19,76 | H168: 7.9
H169: 0
B170: PRODUÇÃO DA EQUIPE | E170: 1 | F170: CUSTO | H170: =SUM(H165:H169) -> 44.83
B171: TOTAL | H171: =H170/E170 -> 44.83 | I171: OK
B172: BDI % | H172: =1+$M$1 -> 1.2467
B173: TOTAL DO SERVIÇO - R$ | H173: =ROUND(H171*H172,2) -> 55.89
A175: 21 | B175: CODEVASF | E175: COMPOSIÇÃO DE PREÇO UNITÁRIO | I175: =H189 -> 5.55 | J175: =H191 -> 6.92
B176: OBRA: | C176: =$C$2 -> PAVIMENTAÇÃO ASFÁLTICA EM CBUQ - RECAPEAMENTO DE VIAS URBANAS (SÃO GONÇALO DO DO ABAETÉ / MG) | G176: DATA: | H176: =$H$2 -> SETEMBRO / 2023
B177: SERVIÇO: | C177: =VLOOKUP(A175,ORÇAMENTO!$A$10:$I$27,3) -> PINTURA DE EIXO VIÁRIO SOBRE ASFALTO COM TINTA RETRORREFLETIVA A BASE DE RESINA ACRÍLICA COM MICROESFERAS DE VIDRO, APLICAÇÃO MECÂNICA COM DEMARCADORA AUTOPROPELIDA | E177: SINAPI | F177: =VLOOKUP(A175,ORÇAMENTO!$A$10:$I$31,4) -> 102512 | G177: UNIDADE: | H177: =VLOOKUP(A175,ORÇAMENTO!$A$10:$I$31,5) -> M
B179: TIPO ITEM | C179: CODIGO ITEM | D179: DESCRIÇÃO ITEM | E179: UNIDADE ITEM | F179: COEFICIENTE | G179: PRECO UNITARIO | H179: CUSTO TOTAL
B180: INSUMO | C180: 5318 | D180: DILUENTE AGUARRAS | E180: L | F180: 0,0020000 | G180: 26,76 | H180: =ROUNDDOWN(F180*G180,2) -> 0.05
B181: INSUMO | C181: 7343 | D181: TINTA ACRILICA A BASE DE SOLVENTE, PARA SINALIZACAO HORIZONTAL VIARIA (NBR 11862) | E181: L | F181: 0,0430000 | G181: 17,71 | H181: 0.76
B182: INSUMO | C182: 44477 | D182: MICROESFERAS DE VIDRO PARA SINALIZACAO HORIZONTAL VIARIA, TIPO II-A (DROP-ON) | E182: KG | F182: 0,0250000 | G182: 10,74 | H182: 0.26
B183: INSUMO | C183: 44478 | D183: MICROESFERAS DE VIDRO PARA SINALIZACAO HORIZONTAL VIARIA, TIPO I-B (PREMIX) | E183: KG | F183: 0,0110000 | G183: 10,74 | H183: 0.11
B184: COMPOSICAO | C184: 88310 | D184: PINTOR COM ENCARGOS COMPLEMENTARES | E184: H | F184: 0,0340000 | G184: 28,66 | H184: 0.97
B185: COMPOSICAO | C185: 88316 | D185: SERVENTE COM ENCARGOS COMPLEMENTARES | E185: H | F185: 0,0140000 | G185: 19,76 | H185: 0.27
B186: COMPOSICAO | C186: 95133 | D186: MÁQUINA DEMARCADORA DE FAIXA DE TRÁFEGO À FRIO, AUTOPROPELIDA, POTÊNCIA 38 HP | E186: CHP | F186: 0,0003000 | G186: 173,43 | H186: 0.05
B187: COMPOSICAO | C187: 96159 | D187: MÁQUINA DEMARCADORA DE FAIXA DE TRÁFEGO À FRIO, AUTOPROPELIDA, POTÊNCIA 38 HP | E187: CHI | F187: 0,0334000 | G187: 92,42 | H187: 3.08
B188: PRODUÇÃO DA EQUIPE | E188: 1 | F188: CUSTO | H188: =SUM(H180:H187) -> 5.55
B189: TOTAL | H189: =H188/E188 -> 5.55 | I189: OK
B190: BDI % | H190: =1+$M$1 -> 1.2467
B191: TOTAL DO SERVIÇO - R$ | H191: =ROUND(H189*H190,2) -> 6.92
A193: 26 | B193: CODEVASF | E193: COMPOSIÇÃO DE PREÇO UNITÁRIO | I193: =H200 -> 2736.39 | J193: =H202 -> 3146.85
B194: OBRA: | C194: =$C$2 -> PAVIMENTAÇÃO ASFÁLTICA EM CBUQ - RECAPEAMENTO DE VIAS URBANAS (SÃO GONÇALO DO DO ABAETÉ / MG) | G194: DATA: | H194: =$H$2 -> SETEMBRO / 2023
B195: SERVIÇO: | C195: =VLOOKUP(A193,ORÇAMENTO!$A$10:$I$36,3) -> AQUISIÇÃO DE EMULSAO ASFALTICA CATIONICA RR-1C - EXCLUSIVE TRANSPORTE | E195: SINAPI | F195: =VLOOKUP(A193,ORÇAMENTO!$A$10:$I$36,4) -> CPU.6 | G195: UNIDADE: | H195: =VLOOKUP(A193,ORÇAMENTO!$A$10:$I$36,5) -> T
B197: TIPO ITEM | C197: CODIGO ITEM | D197: DESCRIÇÃO ITEM | E197: UNIDADE ITEM | F197: COEFICIENTE | G197: PRECO UNITARIO | H197: CUSTO TOTAL
B198: INSUMO | C198: ANP | D198: EMULSÃO ASFÁLTICA CATIÔNICA RR-2C(CUSTO ANP, INCLUINDO ICMS 18%) | E198: T | F198: 1 | G198: =2.24384*1.2195122*1000 -> 2736.390255 | H198: =ROUNDDOWN(F198*G198,2) -> 2736.39
B199: PRODUÇÃO DA EQUIPE | E199: 1 | F199: CUSTO | H199: =SUM(H198:H198) -> 2736.39
B200: TOTAL | H200: =H199/E199 -> 2736.39 | I200: OK
B201: BDI % | H201: =1+$M$2 -> 1.15
B202: TOTAL DO SERVIÇO - R$ | H202: =ROUND(H200*H201,2) -> 3146.85
A204: 27 | B204: CODEVASF | E204: COMPOSIÇÃO DE PREÇO UNITÁRIO | I204: =H211 -> 598 | J204: =H213 -> 687.7
B205: OBRA: | C205: =$C$2 -> PAVIMENTAÇÃO ASFÁLTICA EM CBUQ - RECAPEAMENTO DE VIAS URBANAS (SÃO GONÇALO DO DO ABAETÉ / MG) | G205: DATA: | H205: =$H$2 -> SETEMBRO / 2023
B206: SERVIÇO: | C206: =VLOOKUP(A204,ORÇAMENTO!$A$10:$I$36,3) -> AQUISIÇÃO DE CONCRETO BETUMINOSO USINADO A QUENTE (CBUQ) PARA PAVIMENTACAO ASFALTICA, PADRAO DNIT, FAIXA C, COM CAP 50/70 - EXCLUSIVE TRANSPORTE | E206: SINAPI | F206: =VLOOKUP(A204,ORÇAMENTO!$A$10:$I$36,4) -> CPU.7 | G206: UNIDADE: | H206: =VLOOKUP(A204,ORÇAMENTO!$A$10:$I$36,5) -> T
B208: TIPO ITEM | C208: CODIGO ITEM | D208: DESCRIÇÃO ITEM | E208: UNIDADE ITEM | F208: COEFICIENTE | G208: PRECO UNITARIO | H208: CUSTO TOTAL
B209: INSUMO | C209: 1518 | D209: CONCRETO BETUMINOSO USINADO A QUENTE (CBUQ) PARA PAVIMENTACAO ASFALTICA, PADRAO DNIT, FAIXA C, COM CAP 50/70 - AQUISICAO POSTO USINA | E209: T | F209: 1 | G209: 598 | H209: =ROUNDDOWN(F209*G209,2) -> 598
B210: PRODUÇÃO DA EQUIPE | E210: 1 | F210: CUSTO | H210: =SUM(H209:H209) -> 598
B211: TOTAL | H211: =H210/E210 -> 598 | I211: OK
B212: BDI % | H212: =1+$M$2 -> 1.15
B213: TOTAL DO SERVIÇO - R$ | H213: =ROUND(H211*H212,2) -> 687.7

Sheet BDI SERV
B1: DETALHAMENTO DO BDI - SERVIÇOS
B4: Item | C4: Descrição dos Serviços | D4: % | E4: %
D5: PV | E5: CD
B7: 1 | C7: ADMINISTRAÇÃO CENTRAL | E7: 4.01
B8: 1.1 | C8: ESCRITÓRIO CENTRAL
B9: 1.2 | C9: VIAGENS
B10: 1.3 | C10: OUTROS
B12: 2 | C12: IMPOSTOS E TAXAS | D12: =SUM(D13:D16) -> 8.65 | E12: =SUM(E13:E16) -> 10.82
B13: 2.1 | C13: ISS (*) | D13: 5 | E13: =ROUND(D13*1.2515,2) -> 6.26
B14: 2.2 | C14: PIS | D14: 0.65 | E14: =ROUND(D14*1.2515,2) -> 0.81
B15: 2.3 | C15: Cofins | D15: 3 | E15: =ROUND(D15*1.2515,2) -> 3.75
B16: 2.4 | C16: CONTRIBUIÇÃO PREVIDENCIÁRIA SOBRE A RENDA BRUTA | D16: 0 | E16: =ROUND(D16*1.2515,2) -> 0
B18: 3 | C18: TAXA DE RISCO | E18: =SUM(E19:E22) -> 0.96
B19: 3.1 | C19: SEGURO | E19: 0.2
B20: 3.2 | C20: RISCO | E20: 0.56
B21: 3.3 | C21: GARANTIA | E21: 0.2
B23: 4 | C23: DESPESAS FINANCEIRAS | E23: 1.11
B25: 5 | C25: LUCRO | E25: 7.3
C27: BDI - CALCULADO | E27: =ROUND((((1+(E7+E18)/100)*(1+E23/100)*(1+E25/100)/(1-D12/100)-1)*100),2) -> 24.67
A29: BDI = ((1+((AC+S+R+G)/100))x(1+DF/100)x(1+L/100)/(1-I/100)-1)*100
B31: BDI (CALCULADO): | D31: =ROUND((((1+((E7+E18)/100))*(1+E23/100)*(1+E25/100))/(1-D12/100)-1)*100,2) -> 24.67 | E31: %
A33: (*) ISS CONFORME LEI COMPLEMENTAR Nº 1.830/2021 - ART. 324 § 2º INCISO I - NÃO PREVISTO DEDUÇÃO DE MATERIAIS / QUANTIDADE IRRISÓRIA (MATERIAIS ASFÁLTICOS COM BDI DIFERENCIADO)
A37: BDI EM CONFORMIDADE COM OS ACÓRDÃOS Nº 2369/2011 e ACÓRDÃO Nº 2.622/2013 - TCU - PLENÁRIO

Sheet BDI FORN
B1: DETALHAMENTO DO BDI - FORNECIMENTO (MATERIAL ASFÁLTICO)
B4: Item | C4: Descrição dos Serviços | D4: % | E4: %
D5: PV | E5: CD
B7: 1 | C7: ADMINISTRAÇÃO CENTRAL | E7: 3.72
B8: 1.1 | C8: ESCRITÓRIO CENTRAL
B9: 1.2 | C9: VIAGENS
B10: 1.3 | C10: OUTROS
B12: 2 | C12: IMPOSTOS E TAXAS | D12: =SUM(D13:D16) -> 3.65 | E12: =SUM(E13:E16) -> 4.56
B13: 2.1 | C13: ISS (*) | E13: =ROUND(D13*1.2515,2) -> 0
B14: 2.2 | C14: PIS | D14: 0.65 | E14: =ROUND(D14*1.2515,2) -> 0.81
B15: 2.3 | C15: Cofins | D15: 3 | E15: =ROUND(D15*1.2515,2) -> 3.75
B16: 2.4 | C16: CONTRIBUIÇÃO PREVIDENCIÁRIA SOBRE A RENDA BRUTA | D16: 0 | E16: =ROUND(D16*1.2515,2) -> 0
B18: 3 | C18: TAXA DE RISCO | E18: =SUM(E19:E22) -> 0.82
B19: 3.1 | C19: SEGURO | E19: 0.16
B20: 3.2 | C20: RISCO | E20: 0.5
B21: 3.3 | C21: GARANTIA | E21: 0.16
B23: 4 | C23: DESPESAS FINANCEIRAS | E23: 0.94
B25: 5 | C25: LUCRO | E25: 5
C27: BDI - CALCULADO | E27: =ROUND((((1+(E7+E18)/100)*(1+E23/100)*(1+E25/100)/(1-D12/100)-1)*100),2) -> 15
A29: BDI = ((1+((AC+S+R+G)/100))x(1+DF/100)x(1+L/100)/(1-I/100)-1)*100
B31: BDI (CALCULADO): | D31: =ROUND((((1+((E7+E18)/100))*(1+E23/100)*(1+E25/100))/(1-D12/100)-1)*100,2) -> 15 | E31: %
A37: BDI EM CONFORMIDADE COM OS ACÓRDÃOS Nº 2369/2011 e ACÓRDÃO Nº 2.622/2013 - TCU - PLENÁRIO

Sheet CRONOGRAMA
B1: CRONOGRAMA FÍSICO-FINANCEIRO
B2: OBRA: | C2: =ORÇAMENTO!C5 -> PAVIMENTAÇÃO ASFÁLTICA EM CBUQ - RECAPEAMENTO DE VIAS URBANAS (SÃO GONÇALO DO DO ABAETÉ / MG) | F2: VALOR: | G2: =ORÇAMENTO!I29 -> 4998880.63
F3: PRAZO: | G3: 180 DIAS
B5: ITEM | C5: ETAPAS/DESCRIÇAO | D5: FISICO/ FINANCEIRO | E5: TOTAL ETAPAS | F5: MÊS 1 | G5: MÊS 2 | H5: MÊS 3 | I5: MÊS 4 | J5: MÊS 5 | K5: MÊS 6 | L5: TOTAL
A6: A | B6: =VLOOKUP(A6,ORÇAMENTO!$A$9:$I$29,2) -> 1 | C6: =VLOOKUP(A6,ORÇAMENTO!$A$9:$I$29,3) -> SERVIÇOS PRELIMINARES | D6: FISICO | E6: =ROUND(E7/$G$2,4) -> 0.042 | F6: 0.1 | G6: 0.2 | H6: 0.2 | I6: 0.2 | J6: 0.2 | K6: 0.1 | L6: =SUM(F6:K6) -> 1
D7: FINANCEIRO | E7: =ORÇAMENTO!I9 -> 210191.56 | F7: =ROUND($E$7*F6,2) -> 21019.16 | G7: =ROUND($E$7*G6,2) -> 42038.31 | H7: =ROUND($E$7*H6,2) -> 42038.31 | I7: =ROUND($E$7*I6,2) -> 42038.31 | J7: =ROUND($E$7*J6,2) -> 42038.31 | K7: 21019.16 | L7: =SUM(F7:K7) -> 210191.56
A8: B | B8: =VLOOKUP(A8,ORÇAMENTO!$A$9:$I$29,2) -> 2 | C8: =VLOOKUP(A8,ORÇAMENTO!$A$9:$I$29,3) -> PAVIMENTAÇÃO | D8: FISICO | E8: =ROUND(E9/$G$2,4) -> 0.0874 | F8: 0.2 | G8: 0.2 | H8: 0.2 | I8: 0.2 | J8: 0.2 | K8: 0 | L8: =SUM(F8:K8) -> 1
D9: FINANCEIRO | E9: =ORÇAMENTO!I14 -> 436992 | F9: =ROUND($E$9*F8,2) -> 87398.4 | G9: =ROUND($E$9*G8,2) -> 87398.4 | H9: =ROUND($E$9*H8,2) -> 87398.4 | I9: =ROUND($E$9*I8,2) -> 87398.4 | J9: =ROUND($E$9*J8,2) -> 87398.4 | K9: 0 | L9: =SUM(F9:K9) -> 436992
A10: C | B10: =VLOOKUP(A10,ORÇAMENTO!$A$9:$I$29,2) -> 3 | C10: =VLOOKUP(A10,ORÇAMENTO!$A$9:$I$29,3) -> TRANSPORTE DE MATERIAIS | D10: FISICO | E10: =ROUND(E11/$G$2,4) -> 0.0018 | F10: 0.2 | G10: 0.2 | H10: 0.2 | I10: 0.2 | J10: 0.2 | K10: 0 | L10: =SUM(F10:K10) -> 1
D11: FINANCEIRO | E11: =ORÇAMENTO!I18 -> 8910 | F11: =ROUND($E$11*F10,2) -> 1782 | G11: =ROUND($E$11*G10,2) -> 1782 | H11: =ROUND($E$11*H10,2) -> 1782 | I11: =ROUND($E$11*I10,2) -> 1782 | J11: =ROUND($E$11*J10,2) -> 1782 | K11: 0 | L11: =SUM(F11:K11)-0.04 -> 8909.96
A12: D | B12: =VLOOKUP(A12,ORÇAMENTO!$A$9:$I$29,2) -> 4 | C12: =VLOOKUP(A12,ORÇAMENTO!$A$9:$I$29,3) -> TRANSPORTE DE MATERIAL ASFÁLTICO (BDI DIFERENCIADO) | D12: FISICO | E12: =ROUND(E13/$G$2,4) -> 0.0549 | F12: 0.2 | G12: 0.2 | H12: 0.2 | I12: 0.2 | J12: 0.2 | K12: 0 | L12: =SUM(F12:K12) -> 1
D13: FINANCEIRO | E13: =ORÇAMENTO!I20 -> 274650 | F13: =ROUND($E$13*F12,2) -> 54930 | G13: =ROUND($E$13*G12,2) -> 54930 | H13: =ROUND($E$13*H12,2) -> 54930 | I13: =ROUND($E$13*I12,2) -> 54930 | J13: =ROUND($E$13*J12,2) -> 54930 | K13: 0 | L13: =SUM(F13:K13)-0.02 -> 274649.98
A14: E | B14: =VLOOKUP(A14,ORÇAMENTO!$A$9:$I$29,2) -> 5 | C14: =VLOOKUP(A14,ORÇAMENTO!$A$9:$I$29,3) -> DRENAGEM E OBRAS COMPLEMENTARES | D14: FISICO | E14: =ROUND(E15/$G$2,4) -> 0.0364 | F14: 0 | G14: 0 | H14: 0.1 | I14: 0.3 | J14: 0.3 | K14: 0.3 | L14: =SUM(F14:K14) -> 1
D15: FINANCEIRO | E15: =ORÇAMENTO!I23 -> 181942.4 | F15: =ROUND($E$15*F14,2) -> 0 | G15: =ROUND($E$15*G14,2) -> 0 | H15: =ROUND($E$15*H14,2) -> 18194.24 | I15: =ROUND($E$15*I14,2) -> 54582.72 | J15: =ROUND($E$15*J14,2) -> 54582.72 | K15: 54582.72 | L15: =SUM(F15:K15)-0.02 -> 181942.38
A16: F | B16: =VLOOKUP(A16,ORÇAMENTO!$A$9:$I$29,2) -> 6 | C16: =VLOOKUP(A16,ORÇAMENTO!$A$9:$I$29,3) -> FORNECIMENTOS - MATERIAL ASFÁLTICO (BDI DIFERENCIADO) | D16: FISICO | E16: =ROUND(E17/$G$2,4) -> 0.7774 | F16: 0.2 | G16: 0.2 | H16: 0.2 | I16: 0.2 | J16: 0.2 | K16: 0 | L16: =SUM(F16:K16) -> 1
D17: FINANCEIRO | E17: =ORÇAMENTO!I26 -> 3886194.67 | F17: =ROUND($E$17*F16,2) -> 777238.93 | G17: =ROUND($E$17*G16,2) -> 777238.93 | H17: =ROUND($E$17*H16,2) -> 777238.93 | I17: =ROUND($E$17*I16,2) -> 777238.93 | J17: =ROUND($E$17*J16,2) -> 777238.93 | K17: 0 | L17: =SUM(F17:K17)-0.02 -> 3886194.63
B18: TOTAL | D18: FISICO | E18: =SUM(F18:K18) -> 0.999999996 | F18: =F19/$E$19 -> 0.1885159018 | G18: =G19/$E$19 -> 0.1927206731 | H18: =H19/$E$19 -> 0.196360336 | I18: =I19/$E$19 -> 0.2036396616 | J18: 0.2036396616 | K18: 0.01512376182 | L18: =SUM(F18:K18) -> 0.999999996
D19: FINANCEIRO | E19: =E11+E9+E7+E13+E17+E15 -> 4998880.63 | F19: =F11+F9+F7+F13+F17+F15 -> 942368.49 | G19: =G11+G9+G7+G13+G17+G15 -> 963387.64 | H19: =H11+H9+H7+H13+H17+H15 -> 981581.88 | I19: =I11+I9+I7+I13+I17+I15 -> 1017970.36 | J19: =J11+J9+J7+J13+J17+J15 -> 1017970.36 | K19: 75601.88 | L19: =SUM(F19:K19)+0.02 -> 4998880.63
B21: OBSERVAÇÕES:
